[Event "Eurasia Open Cup 2019"]
[Site "Ekaterinburg"]
[Date "2019.08.05"]
[Round "5.2"]
[White "Pridorozhni, Aleksei"]
[Black "Drygalov, Sergey"]
[Result "1-0"]
[ECO "B90"]
[WhiteElo "2586"]
[BlackElo "2492"]
[Annotator "ChessBase"]
[PlyCount "107"]
[EventDate "2019.07.31"]
[EventType "swiss"]
[EventCountry "RUS"]
[SourceTitle "playchess.com"]
[Source "ChessBase"]
[SourceQuality "1"]
[TimeControl "5400+30"]

1. e4 {[%emt 0:00:00]} c5 {[%emt 0:00:00]} 2. Nf3 {[%emt 0:00:00]} d6 {[%emt 0:00:00]} 3. d4 {[%emt 0:00:00]} cxd4 {[%emt 0:00:00]} 4. Nxd4 {[%emt 0:00:00]} Nf6 {[%emt 0:00:00]} 5. Nc3 {[%emt 0:00:00]} a6 {[%emt 0:00:00]} 6. Be3 {[%emt 0:00:00]} e5 {[%emt 0:01:27]} 7. Nb3 {[%emt 0:00:00]} Be6 {[%emt 0:01:02]} 8. f3 {[%emt 0:00:06]} Be7 {[%emt 0:00:07]} 9. Qd2 {[%emt 0:00:20]} O-O {[%emt 0:01:23]} 10. O-O-O {[%emt 0:00:40]} Nbd7 {[%emt 0:00:00]} 11. g4 {[%emt 0:00:00]} b5 {[%emt 0:00:00]} 12. g5 {[%emt 0:00:17]} Nh5 {[%emt 0:00:00]} 13. Rg1 {[%emt 0:00:26]} Nb6 {[%emt 0:01:42]} 14. Nd5 {[%emt 0:03:15]} Nxd5 {[%emt 0:00:34]} 15. exd5 {[%emt 0:00:07]} Bf5 {[%emt 0:00:03]} 16. Na5 {[%emt 0:00:12]} f6 {[%emt 0:01:20]} 17. Nc6 {[%emt 0:00:47]} Qd7 {[%emt 0:02:05]} 18. h4 {[%emt 0:07:55]} fxg5 {[%emt 0:02:04]} 19. hxg5 {[%emt 0:00:44]} Bg6 {[%emt 0:13:42]} 20. Kb1 {[%emt 0:00:43]} Rae8 {[%emt 0:11:43]} 21. Ka1 {[%emt 0:09:41]} Rxf3 {[%emt 0:12:58]} 22. Be2 {[%emt 0:00:23]} Rg3 {[%emt 0:00:15]} 23. c4 {[%emt 0:00:57]} bxc4 {[%emt 0:16:11]} 24. Bxc4 {[%emt 0:00:28]} Bf8 {[%emt 0:02:52]} 25. Bxa6 {[%emt 0:04:10]} Ra8 {[%emt 0:01:36]} 26. Bc4 {[%emt 0:01:01]} Qh3 {[%emt 0:07:48]} 27. Rde1 {[%emt 0:15:36]} Qh4 {[%emt 0:05:48]} 28. b3 {[%emt 0:04:54]} Rh3 {[%emt 0:01:27]} 29. Bf2 {[%emt 0:05:30]} Qf4 {[%emt 0:02:05]} 30. Be3 {[%emt 0:02:23]} Qh4 {[%emt 0:01:01]} 31. Bf1 {[%emt 0:09:40]} Rh2 {[%emt 0:00:31]} 32. Re2 {[%emt 0:01:50]} Rxe2 {[%emt 0:02:57]} 33. Bxe2 {[%emt 0:00:09]} Qe4 {[%emt 0:05:06]} 34. Bc4 {[%emt 0:08:50]} Ng3 {[%emt 0:01:18]} 35. Bf2 {[%emt 0:03:15]} Nf5 {[%emt 0:02:16]} 36. Kb2 {[%emt 0:00:00]} Qf3 {[%emt 0:02:28]} 37. a4 {[%emt 0:02:19]} e4 {[%emt 0:00:20]} 38. Nd4 {[%emt 0:00:40]} Nxd4 {[%emt 0:00:13]} 39. Bxd4 {[%emt 0:00:00]} Be7 {[%emt 0:01:42]} 40. a5 {[%emt 0:00:09]} e3 {[%emt 0:00:08]} 41. Bxe3 {[%emt 0:01:37]} Bd8 {[%emt 0:01:02]} 42. Rf1 {[%emt 0:00:37]} Qe4 {[%emt 0:00:17]} 43. a6 {[%emt 0:02:41]} Ba5 {[%emt 0:00:05]} 44. Qxa5 {[%emt 0:01:04]} Qxe3 {[%emt 0:01:53]} 45. Qb4 {[%emt 0:00:48]} Bd3 {[%emt 0:00:04]} 46. Qe1 {[%emt 0:00:00]} Qd4+ {[%emt 0:00:42]} 47. Qc3 {[%emt 0:08:05]} Qxc3+ {[%emt 0:01:46]} 48. Kxc3 {[%emt 0:00:06]} Bxc4 {[%emt 0:00:28]} 49. Kxc4 {[%emt 0:00:04]} Rxa6 {[%emt 0:00:05]} 50. Kb5 {[%emt 0:00:30]} Ra2 {[%emt 0:00:03]} 51. Kc6 {[%emt 0:00:26]} Rg2 {[%emt 0:02:14]} 52. b4 {[%emt 0:01:19]} Rxg5 {[%emt 0:00:03]} 53. b5 {[%emt 0:00:00]} Rg2 {[%emt 0:00:04]} 54. Rb1 {[%emt 0:00:00]} 1-0

[Event "Eurasia Open Cup 2019"]
[Site "Ekaterinburg"]
[Date "2019.08.05"]
[Round "5.3"]
[White "Kokarev, Dmitry"]
[Black "Burmakin, Vladimir"]
[Result "1/2-1/2"]
[ECO "B15"]
[WhiteElo "2607"]
[BlackElo "2506"]
[Annotator "ChessBase"]
[PlyCount "80"]
[EventDate "2019.07.31"]
[EventType "swiss"]
[EventCountry "RUS"]
[SourceTitle "playchess.com"]
[Source "ChessBase"]
[SourceQuality "1"]
[TimeControl "5400+30"]

1. e4 {[%emt 0:00:00]} c6 {[%emt 0:00:00]} 2. Nc3 {[%emt 0:00:00]} d5 {[%emt 0:00:00]} 3. Nf3 {[%emt 0:00:00]} dxe4 {[%emt 0:06:56]} 4. Nxe4 {[%emt 0:00:00]} Nf6 {[%emt 0:00:04]} 5. Nxf6+ {[%emt 0:00:25]} exf6 {[%emt 0:00:03]} 6. d4 {[%emt 0:00:00]} Bd6 {[%emt 0:00:06]} 7. Bd3 {[%emt 0:00:25]} O-O {[%emt 0:00:07]} 8. O-O {[%emt 0:00:10]} Re8 {[%emt 0:00:27]} 9. Re1 {[%emt 0:02:48]} Rxe1+ {[%emt 0:00:07]} 10. Qxe1 {[%emt 0:00:00]} Nd7 {[%emt 0:00:31]} 11. Be3 {[%emt 0:04:12]} Nf8 {[%emt 0:00:11]} 12. h3 {[%emt 0:03:44]} Be6 {[%emt 0:05:20]} 13. c4 {[%emt 0:01:24]} Qd7 {[%emt 0:00:24]} 14. Bf1 {[%emt 0:00:37]} Bf5 {[%emt 0:08:04]} 15. Qc3 {[%emt 0:05:45]} Rd8 {[%emt 0:06:16]} 16. Rd1 {[%emt 0:03:46]} Bb8 {[%emt 0:02:37]} 17. Qb3 {[%emt 0:30:44]} h5 {[%emt 0:13:33]} 18. d5 {[%emt 0:03:41]} Be4 {[%emt 0:00:52]} 19. Nd2 {[%emt 0:01:10]} Bf5 {[%emt 0:08:37]} 20. dxc6 {[%emt 0:02:08]} bxc6 {[%emt 0:04:42]} 21. Be2 {[%emt 0:00:43]} Qc7 {[%emt 0:04:35]} 22. Nf1 {[%emt 0:00:10]} Rxd1 {[%emt 0:00:06]} 23. Bxd1 {[%emt 0:01:47]} g6 {[%emt 0:00:54]} 24. Qc3 {[%emt 0:05:33]} Nd7 {[%emt 0:00:03]} 25. b4 {[%emt 0:00:41]} Qe5 {[%emt 0:11:02]} 26. Bd4 {[%emt 0:05:14]} Qe4 {[%emt 0:00:00]} 27. Bf3 {[%emt 0:10:12]} Qb1 {[%emt 0:02:35]} 28. Bxc6 {[%emt 0:00:40]} Ne5 {[%emt 0:00:15]} 29. Bd5 {[%emt 0:01:44]} Bd3 {[%emt 0:01:30]} 30. Qa1 {[%emt 0:00:38]} Qxb4 {[%emt 0:00:30]} 31. a3 {[%emt 0:02:10]} Qb3 {[%emt 0:07:46]} 32. Ne3 {[%emt 0:01:02]} Nxc4 {[%emt 0:00:47]} 33. Bxf6 {[%emt 0:00:51]} Bd6 {[%emt 0:08:08]} 34. g3 {[%emt 0:08:34]} Bc5 {[%emt 0:00:00]} 35. Bh8 {[%emt 0:00:51]} Qb1+ {[%emt 0:00:48]} 36. Qxb1 {[%emt 0:00:50]} Bxb1 {[%emt 0:00:02]} 37. Nxc4 {[%emt 0:00:00]} Kxh8 {[%emt 0:00:32]} 38. Bxf7 {[%emt 0:00:00]} Kg7 {[%emt 0:01:08]} 39. Bd5 {[%emt 0:00:46]} Ba2 {[%emt 0:01:16]} 40. a4 {[%emt 0:01:40]} Bxc4 {[%emt 0:01:30]} 1/2-1/2

[Event "Eurasia Open Cup 2019"]
[Site "Ekaterinburg"]
[Date "2019.08.05"]
[Round "5.4"]
[White "Shaposhnikov, Evgeny"]
[Black "Kostenko, Petr"]
[Result "1/2-1/2"]
[ECO "A92"]
[WhiteElo "2575"]
[BlackElo "2471"]
[Annotator "ChessBase"]
[PlyCount "143"]
[EventDate "2019.07.31"]
[EventType "swiss"]
[EventCountry "RUS"]
[SourceTitle "playchess.com"]
[Source "ChessBase"]
[SourceQuality "1"]
[TimeControl "5400+30"]

1. Nf3 {[%emt 0:03:20]} f5 {[%emt 0:00:00]} 2. g3 {[%emt 0:00:52]} Nf6 {[%emt 0:00:00]} 3. Bg2 {[%emt 0:00:00]} e6 {[%emt 0:01:01]} 4. O-O {[%emt 0:00:00]} Be7 {[%emt 0:00:00]} 5. c4 {[%emt 0:00:07]} O-O {[%emt 0:00:00]} 6. d4 {[%emt 0:00:57]} d5 {[%emt 0:00:31]} 7. cxd5 {[%emt 0:01:07]} exd5 {[%emt 0:00:14]} 8. Bg5 {[%emt 0:00:47]} c6 {[%emt 0:00:50]} 9. Bxf6 {[%emt 0:00:44]} Bxf6 {[%emt 0:01:05]} 10. Nc3 {[%emt 0:00:00]} Qe7 {[%emt 0:00:44]} 11. Rb1 {[%emt 0:00:00]} Na6 {[%emt 0:03:26]} 12. a3 {[%emt 0:01:40]} Nc7 {[%emt 0:00:04]} 13. b4 {[%emt 0:00:16]} g5 {[%emt 0:01:43]} 14. e3 {[%emt 0:00:07]} f4 {[%emt 0:00:13]} 15. exf4 {[%emt 0:02:12]} gxf4 {[%emt 0:01:03]} 16. Qd2 {[%emt 0:00:26]} Qg7 {[%emt 0:05:07]} 17. b5 {[%emt 0:04:03]} Bg4 {[%emt 0:07:49]} 18. bxc6 {[%emt 0:00:59]} bxc6 {[%emt 0:00:41]} 19. Ne2 {[%emt 0:15:21]} fxg3 {[%emt 0:00:51]} 20. fxg3 {[%emt 0:03:57]} Nb5 {[%emt 0:01:43]} 21. Rb3 {[%emt 0:10:44]} Rae8 {[%emt 0:01:58]} 22. Re3 {[%emt 0:11:56]} Nd6 {[%emt 0:26:57]} 23. Rxe8 {[%emt 0:02:05]} Rxe8 {[%emt 0:00:00]} 24. Qf4 {[%emt 0:15:57]} Nc4 {[%emt 0:01:49]} 25. h3 {[%emt 0:01:22]} Bc8 {[%emt 0:15:04]} 26. Nc3 {[%emt 0:01:44]} Rf8 {[%emt 0:05:01]} 27. g4 {[%emt 0:05:32]} Bd8 {[%emt 0:07:49]} 28. Qc1 {[%emt 0:00:11]} Be7 {[%emt 0:00:38]} 29. a4 {[%emt 0:00:42]} Ba3 {[%emt 0:00:38]} 30. Qe1 {[%emt 0:01:50]} Bd6 {[%emt 0:01:38]} 31. Kh1 {[%emt 0:01:47]} Bd7 {[%emt 0:01:49]} 32. Qh4 {[%emt 0:04:47]} Ne3 {[%emt 0:03:11]} 33. Re1 {[%emt 0:00:18]} Nc2 {[%emt 0:02:41]} 34. Rd1 {[%emt 0:00:01]} Ne3 {[%emt 0:03:30]} 35. Re1 {[%emt 0:00:02]} Nxg2 {[%emt 0:01:38]} 36. Kxg2 {[%emt 0:00:32]} c5 {[%emt 0:02:05]} 37. Qh5 {[%emt 0:00:48]} Qf7 {[%emt 0:01:38]} 38. Qxf7+ {[%emt 0:01:03]} Rxf7 {[%emt 0:00:29]} 39. dxc5 {[%emt 0:04:15]} Bxc5 {[%emt 0:00:00]} 40. Rd1 {[%emt 0:00:28]} d4 {[%emt 0:01:08]} 41. Nxd4 {[%emt 0:01:16]} Bxd4 {[%emt 0:00:51]} 42. Rxd4 {[%emt 0:00:14]} Bc6+ {[%emt 0:00:03]} 43. Kg1 {[%emt 0:00:12]} Rf3 {[%emt 0:01:08]} 44. Rc4 {[%emt 0:00:02]} Bd7 {[%emt 0:00:46]} 45. Kg2 {[%emt 0:00:38]} Rd3 {[%emt 0:00:22]} 46. Rc7 {[%emt 0:00:31]} Be6 {[%emt 0:01:07]} 47. a5 {[%emt 0:00:25]} a6 {[%emt 0:00:03]} 48. Kh2 {[%emt 0:02:20]} h5 {[%emt 0:01:00]} 49. Ne4 {[%emt 0:00:24]} hxg4 {[%emt 0:00:20]} 50. hxg4 {[%emt 0:00:17]} Ra3 {[%emt 0:00:56]} 51. g5 {[%emt 0:01:00]} Bf5 {[%emt 0:00:12]} 52. Nf6+ {[%emt 0:00:42]} Kf8 {[%emt 0:00:04]} 53. Rc5 {[%emt 0:00:00]} Bd3 {[%emt 0:00:58]} 54. Kg3 {[%emt 0:01:54]} Kf7 {[%emt 0:00:16]} 55. Ng4 {[%emt 0:01:20]} Be2+ {[%emt 0:00:47]} 56. Kh4 {[%emt 0:00:34]} Ra4 {[%emt 0:00:00]} 57. g6+ {[%emt 0:00:09]} Kxg6 {[%emt 0:00:00]} 58. Rg5+ {[%emt 0:00:37]} Kf7 {[%emt 0:00:28]} 59. Kg3 {[%emt 0:00:00]} Bb5 {[%emt 0:00:14]} 60. Ne3 {[%emt 0:00:00]} Rxa5 {[%emt 0:00:24]} 61. Nc4 {[%emt 0:00:00]} Ra4 {[%emt 0:00:21]} 62. Nd6+ {[%emt 0:00:20]} Kf6 {[%emt 0:00:00]} 63. Rc5 {[%emt 0:01:33]} Bd3 {[%emt 0:00:19]} 64. Nb7 {[%emt 0:00:19]} Rd4 {[%emt 0:00:33]} 65. Ra5 {[%emt 0:01:00]} Ke7 {[%emt 0:00:51]} 66. Nc5 {[%emt 0:01:07]} Rd5 {[%emt 0:00:13]} 67. Ra3 {[%emt 0:00:00]} Rxc5 {[%emt 0:00:13]} 68. Rxd3 {[%emt 0:00:00]} a5 {[%emt 0:00:07]} 69. Kf3 {[%emt 0:00:24]} a4 {[%emt 0:00:06]} 70. Ke3 {[%emt 0:00:13]} Ra5 {[%emt 0:00:00]} 71. Ra3 {[%emt 0:00:08]} Kd6 {[%emt 0:00:12]} 72. Ke4 {[%emt 0:00:17]} 1/2-1/2

[Event "Eurasia Open Cup 2019"]
[Site "Ekaterinburg"]
[Date "2019.08.05"]
[Round "5.5"]
[White "Ovchinnikov, Vsevolod"]
[Black "Bocharov, Ivan"]
[Result "0-1"]
[ECO "E11"]
[WhiteElo "2346"]
[BlackElo "2559"]
[Annotator "ChessBase"]
[PlyCount "108"]
[EventDate "2019.07.31"]
[EventType "swiss"]
[EventCountry "RUS"]
[SourceTitle "playchess.com"]
[Source "ChessBase"]
[SourceQuality "1"]
[TimeControl "5400+30"]

1. d4 {[%emt 0:00:00]} Nf6 {[%emt 0:00:00]} 2. c4 {[%emt 0:00:00]} e6 {[%emt 0:00:00]} 3. g3 {[%emt 0:00:00]} Bb4+ {[%emt 0:00:00]} 4. Bd2 {[%emt 0:00:00]} Be7 {[%emt 0:00:00]} 5. Bg2 {[%emt 0:00:12]} d5 {[%emt 0:00:00]} 6. Nf3 {[%emt 0:00:29]} O-O {[%emt 0:00:00]} 7. O-O {[%emt 0:00:27]} Nbd7 {[%emt 0:00:00]} 8. Qc2 {[%emt 0:01:25]} c6 {[%emt 0:00:00]} 9. b3 {[%emt 0:17:16]} Ne4 {[%emt 0:02:01]} 10. Nc3 {[%emt 0:01:17]} f5 {[%emt 0:02:03]} 11. Nxe4 {[%emt 0:16:15]} fxe4 {[%emt 0:01:47]} 12. Ne1 {[%emt 0:03:02]} b5 {[%emt 0:08:05]} 13. cxd5 {[%emt 0:04:44]} cxd5 {[%emt 0:01:14]} 14. Qc6 {[%emt 0:15:12]} Nb6 {[%emt 0:16:55]} 15. Qxb5 {[%emt 0:04:26]} Bd7 {[%emt 0:02:03]} 16. Qa5 {[%emt 0:01:46]} Rc8 {[%emt 0:03:56]} 17. f3 {[%emt 0:08:29]} Bf6 {[%emt 0:04:00]} 18. e3 {[%emt 0:00:32]} e5 {[%emt 0:01:17]} 19. dxe5 {[%emt 0:03:20]} Bxe5 {[%emt 0:00:01]} 20. Rc1 {[%emt 0:00:08]} Rxc1 {[%emt 0:05:43]} 21. Bxc1 {[%emt 0:00:01]} Qc7 {[%emt 0:00:09]} 22. Bd2 {[%emt 0:02:01]} Bf5 {[%emt 0:01:25]} 23. fxe4 {[%emt 0:05:53]} dxe4 {[%emt 0:00:05]} 24. Bb4 {[%emt 0:00:16]} Rf6 {[%emt 0:06:00]} 25. Nc2 {[%emt 0:03:38]} Bg6 {[%emt 0:00:00]} 26. Rxf6 {[%emt 0:00:14]} gxf6 {[%emt 0:00:04]} 27. Qc5 {[%emt 0:00:12]} Nd7 {[%emt 0:01:08]} 28. Qd5+ {[%emt 0:04:24]} Kg7 {[%emt 0:00:38]} 29. Bxe4 {[%emt 0:00:33]} Nb6 {[%emt 0:00:33]} 30. Qd3 {[%emt 0:03:14]} Bxg3 {[%emt 0:00:01]} 31. Bxg6 {[%emt 0:03:45]} Bxh2+ {[%emt 0:00:39]} 32. Kf1 {[%emt 0:01:48]} hxg6 {[%emt 0:00:21]} 33. Nd4 {[%emt 0:00:00]} Qd7 {[%emt 0:03:20]} 34. Qe4 {[%emt 0:00:29]} Nd5 {[%emt 0:00:00]} 35. Bd2 {[%emt 0:00:35]} Be5 {[%emt 0:00:47]} 36. Nf3 {[%emt 0:00:22]} Bc3 {[%emt 0:00:31]} 37. Bxc3 {[%emt 0:01:00]} Nxc3 {[%emt 0:00:00]} 38. Qd4 {[%emt 0:00:26]} Qxd4 {[%emt 0:00:25]} 39. Nxd4 {[%emt 0:00:01]} Nxa2 {[%emt 0:00:00]} 40. Nc6 {[%emt 0:01:22]} a6 {[%emt 0:00:02]} 41. Ke1 {[%emt 0:00:00]} g5 {[%emt 0:01:50]} 42. Kd2 {[%emt 0:00:37]} g4 {[%emt 0:00:31]} 43. Nd4 {[%emt 0:00:35]} Kg6 {[%emt 0:01:00]} 44. e4 {[%emt 0:00:27]} Kg5 {[%emt 0:00:00]} 45. Ke3 {[%emt 0:00:06]} Nc3 {[%emt 0:02:19]} 46. b4 {[%emt 0:01:18]} Kh4 {[%emt 0:00:59]} 47. Kf4 {[%emt 0:00:09]} Kh3 {[%emt 0:00:30]} 48. Nf5 {[%emt 0:00:32]} Na2 {[%emt 0:01:25]} 49. e5 {[%emt 0:00:24]} fxe5+ {[%emt 0:00:08]} 50. Kxe5 {[%emt 0:00:01]} Nxb4 {[%emt 0:00:06]} 51. Kd4 {[%emt 0:00:34]} g3 {[%emt 0:00:08]} 52. Nxg3 {[%emt 0:00:14]} Kxg3 {[%emt 0:00:30]} 53. Kc5 {[%emt 0:00:04]} a5 {[%emt 0:00:00]} 54. Kb5 {[%emt 0:00:07]} Nc6 {[%emt 0:00:02]} 0-1

[Event "Eurasia Open Cup 2019"]
[Site "Ekaterinburg"]
[Date "2019.08.05"]
[Round "5.6"]
[White "Sargsyan, Shant"]
[Black "Guseva, Marina"]
[Result "1-0"]
[ECO "D10"]
[WhiteElo "2529"]
[BlackElo "2379"]
[Annotator "ChessBase"]
[PlyCount "105"]
[EventDate "2019.07.31"]
[EventType "swiss"]
[EventCountry "RUS"]
[SourceTitle "playchess.com"]
[Source "ChessBase"]
[SourceQuality "1"]
[TimeControl "5400+30"]

1. d4 {[%emt 0:00:45]} d5 {[%emt 0:00:00]} 2. c4 {[%emt 0:00:00]} c6 {[%emt 0:00:00]} 3. cxd5 {[%emt 0:00:27]} cxd5 {[%emt 0:00:00]} 4. Bf4 {[%emt 0:00:19]} Nf6 {[%emt 0:00:00]} 5. e3 {[%emt 0:00:37]} Nc6 {[%emt 0:01:20]} 6. Nc3 {[%emt 0:00:16]} Bg4 {[%emt 0:00:06]} 7. f3 {[%emt 0:01:12]} Bd7 {[%emt 0:00:11]} 8. Bd3 {[%emt 0:00:06]} e6 {[%emt 0:00:06]} 9. g4 {[%emt 0:00:52]} Be7 {[%emt 0:00:07]} 10. Nge2 {[%emt 0:01:09]} O-O {[%emt 0:00:32]} 11. h4 {[%emt 0:02:07]} Ne8 {[%emt 0:00:46]} 12. a3 {[%emt 0:03:11]} Na5 {[%emt 0:15:41]} 13. Kf2 {[%emt 0:06:32]} Bxh4+ {[%emt 0:03:59]} 14. Kg2 {[%emt 0:02:03]} h6 {[%emt 0:01:57]} 15. Rh3 {[%emt 0:09:06]} Nc4 {[%emt 0:06:54]} 16. Qh1 {[%emt 0:18:27]} Bg5 {[%emt 0:07:09]} 17. Bxg5 {[%emt 0:12:27]} Qxg5 {[%emt 0:00:06]} 18. f4 {[%emt 0:00:13]} Qe7 {[%emt 0:02:16]} 19. b3 {[%emt 0:03:50]} Nd2 {[%emt 0:12:40]} 20. g5 {[%emt 0:07:09]} e5 {[%emt 0:14:11]} 21. Rg3 {[%emt 0:02:10]} e4 {[%emt 0:08:58]} 22. Bc2 {[%emt 0:10:05]} Be6 {[%emt 0:02:07]} 23. Qh5 {[%emt 0:02:31]} Rd8 {[%emt 0:06:30]} 24. Rh1 {[%emt 0:03:06]} Kh8 {[%emt 0:04:29]} 25. f5 {[%emt 0:09:29]} Bxf5 {[%emt 0:00:31]} 26. Nf4 {[%emt 0:00:04]} Qc7 {[%emt 0:03:48]} 27. g6 {[%emt 0:01:11]} fxg6 {[%emt 0:00:57]} 28. Rxg6 {[%emt 0:01:22]} Rd6 {[%emt 0:02:55]} 29. Ncxd5 {[%emt 0:01:35]} Rxg6+ {[%emt 0:03:29]} 30. Nxg6+ {[%emt 0:01:21]} Bxg6 {[%emt 0:00:04]} 31. Qxg6 {[%emt 0:00:17]} Qd6 {[%emt 0:02:20]} 32. Nf4 {[%emt 0:00:52]} Qc7 {[%emt 0:01:15]} 33. Bxe4 {[%emt 0:00:35]} Nxe4 {[%emt 0:00:02]} 34. Qxe4 {[%emt 0:00:15]} Kg8 {[%emt 0:00:29]} 35. Qe6+ {[%emt 0:00:46]} Qf7 {[%emt 0:00:10]} 36. Rc1 {[%emt 0:00:55]} Qxe6 {[%emt 0:00:20]} 37. Nxe6 {[%emt 0:00:00]} Rf6 {[%emt 0:00:07]} 38. Nc5 {[%emt 0:00:34]} Nd6 {[%emt 0:00:47]} 39. e4 {[%emt 0:00:24]} b6 {[%emt 0:00:09]} 40. Nd7 {[%emt 0:00:38]} Rg6+ {[%emt 0:00:04]} 41. Kf3 {[%emt 0:00:15]} Re6 {[%emt 0:00:30]} 42. e5 {[%emt 0:00:36]} Re7 {[%emt 0:00:59]} 43. Nf6+ {[%emt 0:00:28]} gxf6 {[%emt 0:00:36]} 44. exd6 {[%emt 0:00:03]} Rd7 {[%emt 0:00:00]} 45. Rc6 {[%emt 0:00:39]} Kf7 {[%emt 0:00:24]} 46. Ke4 {[%emt 0:00:00]} Ke6 {[%emt 0:00:25]} 47. d5+ {[%emt 0:00:00]} Kf7 {[%emt 0:00:02]} 48. Kf5 {[%emt 0:00:00]} Ke8 {[%emt 0:01:01]} 49. Rc8+ {[%emt 0:00:18]} Rd8 {[%emt 0:00:03]} 50. Ke6 {[%emt 0:00:06]} Rxc8 {[%emt 0:00:08]} 51. d7+ {[%emt 0:00:34]} Kd8 {[%emt 0:00:01]} 52. dxc8=Q+ {[%emt 0:00:00]} Kxc8 {[%emt 0:00:01]} 53. Ke7 {[%emt 0:00:00]} 1-0

[Event "Eurasia Open Cup 2019"]
[Site "Ekaterinburg"]
[Date "2019.08.05"]
[Round "5.7"]
[White "Gleizerov, Evgeny"]
[Black "Afanasiev, Nikita"]
[Result "1-0"]
[ECO "D85"]
[WhiteElo "2498"]
[BlackElo "2514"]
[Annotator "ChessBase"]
[PlyCount "107"]
[EventDate "2019.07.31"]
[EventType "swiss"]
[EventCountry "RUS"]
[SourceTitle "playchess.com"]
[Source "ChessBase"]
[SourceQuality "1"]
[TimeControl "5400+30"]

1. d4 {[%emt 0:00:00]} Nf6 {[%emt 0:06:55]} 2. c4 {[%emt 0:00:00]} g6 {[%emt 0:00:05]} 3. Nc3 {[%emt 0:00:00]} d5 {[%emt 0:00:34]} 4. cxd5 {[%emt 0:00:00]} Nxd5 {[%emt 0:00:04]} 5. Bd2 {[%emt 0:00:00]} Bg7 {[%emt 0:00:00]} 6. e4 {[%emt 0:00:00]} Nxc3 {[%emt 0:00:00]} 7. Bxc3 {[%emt 0:00:00]} O-O {[%emt 0:00:00]} 8. Bc4 {[%emt 0:00:00]} c5 {[%emt 0:03:22]} 9. d5 {[%emt 0:00:00]} Bxc3+ {[%emt 0:07:25]} 10. bxc3 {[%emt 0:00:11]} Qa5 {[%emt 0:00:34]} 11. Ne2 {[%emt 0:00:13]} Nd7 {[%emt 0:12:50]} 12. O-O {[%emt 0:01:08]} Nb6 {[%emt 0:00:44]} 13. Bb3 {[%emt 0:00:10]} Bd7 {[%emt 0:02:32]} 14. c4 {[%emt 0:03:54]} e5 {[%emt 0:02:26]} 15. Nc1 {[%emt 0:05:31]} Rae8 {[%emt 0:04:29]} 16. Nd3 {[%emt 0:03:57]} Nc8 {[%emt 0:00:00]} 17. Qe2 {[%emt 0:08:48]} Nd6 {[%emt 0:03:36]} 18. Qe3 {[%emt 0:00:27]} b6 {[%emt 0:00:24]} 19. f4 {[%emt 0:08:51]} exf4 {[%emt 0:22:50]} 20. Qxf4 {[%emt 0:00:23]} Nxe4 {[%emt 0:00:14]} 21. Ne5 {[%emt 0:00:11]} Bf5 {[%emt 0:00:57]} 22. Nc6 {[%emt 0:11:57]} Qd2 {[%emt 0:02:05]} 23. Nxa7 {[%emt 0:05:45]} Qxf4 {[%emt 0:17:31]} 24. Rxf4 {[%emt 0:00:05]} Bd7 {[%emt 0:00:56]} 25. Nb5 {[%emt 0:07:22]} f5 {[%emt 0:02:48]} 26. a4 {[%emt 0:03:29]} Ra8 {[%emt 0:03:45]} 27. Rd1 {[%emt 0:03:31]} Bxb5 {[%emt 0:01:03]} 28. cxb5 {[%emt 0:00:06]} Nd6 {[%emt 0:00:08]} 29. Rff1 {[%emt 0:01:04]} Rfe8 {[%emt 0:00:59]} 30. Rfe1 {[%emt 0:00:58]} Kf7 {[%emt 0:02:22]} 31. Kf2 {[%emt 0:04:35]} c4 {[%emt 0:00:38]} 32. Bc2 {[%emt 0:00:06]} Kf6 {[%emt 0:00:05]} 33. Kf3 {[%emt 0:02:18]} Re5 {[%emt 0:00:30]} 34. g4 {[%emt 0:03:15]} fxg4+ {[%emt 0:00:54]} 35. Kxg4 {[%emt 0:00:05]} Rae8 {[%emt 0:00:04]} 36. Rxe5 {[%emt 0:00:30]} Rxe5 {[%emt 0:00:31]} 37. Rd2 {[%emt 0:01:22]} Re3 {[%emt 0:00:14]} 38. Kf4 {[%emt 0:01:08]} Rh3 {[%emt 0:00:11]} 39. Re2 {[%emt 0:00:19]} Nf7 {[%emt 0:01:54]} 40. Re6+ {[%emt 0:01:41]} Kg7 {[%emt 0:00:00]} 41. Rxb6 {[%emt 0:00:00]} Rxh2 {[%emt 0:00:00]} 42. Be4 {[%emt 0:00:15]} Rh4+ {[%emt 0:00:51]} 43. Ke3 {[%emt 0:00:34]} Ng5 {[%emt 0:00:05]} 44. Bc2 {[%emt 0:01:38]} Rh2 {[%emt 0:00:01]} 45. Bd1 {[%emt 0:02:48]} Rh3+ {[%emt 0:00:12]} 46. Kf4 {[%emt 0:01:16]} Rd3 {[%emt 0:01:45]} 47. Bc2 {[%emt 0:04:27]} Rxd5 {[%emt 0:00:41]} 48. a5 {[%emt 0:01:23]} Ne6+ {[%emt 0:00:39]} 49. Ke4 {[%emt 0:00:21]} Rd4+ {[%emt 0:01:01]} 50. Ke3 {[%emt 0:05:22]} Rd5 {[%emt 0:01:00]} 51. Rxe6 {[%emt 0:00:25]} Rxb5 {[%emt 0:00:26]} 52. a6 {[%emt 0:01:19]} Kf7 {[%emt 0:00:04]} 53. Rc6 {[%emt 0:00:05]} Ra5 {[%emt 0:00:18]} 54. Kd4 {[%emt 0:00:15]} 1-0